fUST/lending_fUST_20260628
["ID","MTS","AMOUNT","RATE_DAILY","PERIOD"]
[426546846,1782577846000,-422.76702318,0.00036549,2]
[426546849,1782577846000,-385.07593921,0.00036549,2]
[426546851,1782577846000,-13301.79061725,0.00036549,15]
[426546854,1782577846000,-2039.28258824,0.00036557,2]
[426546850,1782577846000,-481.12399368,0.00036549,15]
[426546853,1782577846000,-836.41360398,0.00036551,2]
[426546857,1782577846000,-2878.22693492,0.00036557,2]
[426546887,1782577846000,-660.41780776,0.00036558,2]
[426546870,1782577846000,-381.03588313,0.00036557,2]
[426546892,1782577846000,-151.0,0.00036685,2]
[426546932,1782577846000,-763.10952867,0.00037003,2]
[426546941,1782577846000,-151.0,0.0003737,2]
[426546936,1782577846000,-151.0,0.00037123,2]
[426546935,1782577846000,-151.0,0.00037123,2]
[426546942,1782577846000,-1067.62862391,0.00037413,14]
[426546939,1782577846000,-303.58205714,0.0003726,30]
[426546934,1782577846000,-303.58205714,0.00037068,30]
[426546940,1782577846000,-151.0,0.0003737,2]
[426546938,1782577846000,-151.0,0.00037178,2]
[426546937,1782577846000,-210.0,0.00037151,43]
[426546933,1782577846000,-782.89659595,0.00037004,2]
[426546943,1782577846000,-303.58205714,0.00037425,30]
[426546946,1782577846000,-3058.92388236,0.00037671,2]
[426546945,1782577846000,-303.58205714,0.00037589,30]
[426546949,1782577846000,-1076.70763627,0.00037671,2]
[426546950,1782577846000,-922.55427341,0.00037671,2]
[426546948,1782577846000,-4317.34040238,0.00037671,2]
[426546947,1782577846000,-1874.70682243,0.00037671,2]
[426546952,1782577846000,-903.66520094,0.00037671,2]
[426546954,1782577846000,-908.34688897,0.00037671,2]
[426546955,1782577846000,-151.0,0.00037671,2]
[426546951,1782577846000,-949.61581101,0.00037671,2]
[426546953,1782577846000,-986.71179039,0.00037671,2]
[426546956,1782577846000,-151.0,0.00037671,2]
[426546958,1782577846000,-1113.8139298,0.00037671,2]
[426546957,1782577846000,-1202.56777727,0.00037671,2]
[426546885,1782577846000,-616.72740072,0.00036557,2]
[426546930,1782577846000,-814.34572131,0.00037003,2]
[426546929,1782577846000,-772.49219998,0.00037003,2]
[426546944,1782577846000,-151.0,0.00037534,2]
[426546926,1782577846000,-851.64202347,0.00037003,2]
[426546918,1782577846000,-822.25982532,0.00037003,2]
[426546890,1782577846000,-151.0,0.00036685,2]
[426546889,1782577846000,-644.89770538,0.00036559,2]
[426546884,1782577846000,-671.23314549,0.00036557,2]
[426546896,1782577846000,-151.0,0.00036849,2]
[426546894,1782577846000,-303.58205714,0.0003674,30]
[426546898,1782577846000,-151.0,0.00036849,2]
[426546907,1782577846000,-2549.1032353,0.00037002,2]
[426546897,1782577846000,-151.0,0.00036849,2]
[426546900,1782577846000,-360.11328272,0.0003689,2]
[426546899,1782577846000,-151.0,0.00036849,2]
[426546901,1782577846000,-303.58205714,0.00036904,30]
[426546908,1782577846000,-1562.25568536,0.00037002,2]
[426546909,1782577846000,-3597.78366865,0.00037002,2]
[426546895,1782577846000,-151.0,0.00036795,2]
[426546915,1782577846000,-791.34650917,0.00037003,2]
[426546916,1782577846000,-753.05433411,0.00037003,2]
[426546931,1782577846000,-770.9092509,0.00037003,2]
[426546928,1782577846000,-980.69147905,0.00037003,2]
[426546906,1782577846000,-288.10959968,0.00037,30]
[426546927,1782577846000,-754.67435139,0.00037003,2]
[426546924,1782577846000,-928.17827483,0.00037003,2]
[426546920,1782577846000,-756.95574081,0.00037003,2]
[426546913,1782577846000,-768.79522784,0.00037003,2]
[426546911,1782577846000,-897.25636356,0.00037003,2]
[426546910,1782577846000,-974.72212134,0.00037002,2]
[426546905,1782577846000,-183.39130212,0.00036994,2]
[426546903,1782577846000,-151.0,0.00036959,2]
[426546923,1782577846000,-1002.13981439,0.00037003,2]
[426547003,1782577847000,-514.64432138,0.00038356,2]
[426546990,1782577847000,-500.0,0.00038355,2]
[426546994,1782577847000,-522.92763642,0.00038356,2]
[426546997,1782577847000,-501.14466823,0.00038356,2]
[426546996,1782577847000,-500.0,0.00038356,2]
[426546998,1782577847000,-500.0,0.00038356,2]
[426546989,1782577847000,-2000.0,0.0003835,2]
[426546991,1782577847000,-651.4935,0.00038356,2]
[426547000,1782577847000,-500.0,0.00038356,2]
[426547001,1782577847000,-586.92783725,0.00038356,2]
[426546999,1782577847000,-529.01917612,0.00038356,2]
[426547013,1782577847000,-500.0,0.00038356,2]
[426546995,1782577847000,-500.0,0.00038356,2]
[426547002,1782577847000,-500.0,0.00038356,2]
[426547008,1782577847000,-500.0,0.00038356,2]
[426547010,1782577847000,-500.0,0.00038356,2]
[426547006,1782577847000,-518.75277091,0.00038356,2]
[426547012,1782577847000,-500.0,0.00038356,2]
[426547004,1782577847000,-506.53010601,0.00038356,2]
[426547007,1782577847000,-500.0,0.00038356,2]
[426547011,1782577847000,-500.0,0.00038356,2]
[426547009,1782577847000,-500.0,0.00038356,2]
[426547023,1782577847000,-500.0,0.00038356,2]
[426547018,1782577847000,-515.83,0.00038356,2]
[426547014,1782577847000,-500.0,0.00038356,2]
[426547016,1782577847000,-500.0,0.00038356,2]
[426547015,1782577847000,-520.70227615,0.00038356,2]
[426547017,1782577847000,-552.43,0.00038356,2]
[426547005,1782577847000,-1250.42,0.00038356,2]
[426546993,1782577847000,-500.0,0.00038356,2]
[426546963,1782577847000,-977.21486557,0.00037671,2]
[426546984,1782577847000,-151.0,0.00038164,2]
[426547020,1782577847000,-500.0,0.00038356,2]
[426546962,1782577847000,-926.99063998,0.00037671,2]
[426546959,1782577847000,-1021.97042817,0.00037671,2]
[426546960,1782577847000,-905.60922166,0.00037671,2]
[426546961,1782577847000,-1176.82977486,0.00037671,2]
[426546964,1782577847000,-925.09110108,0.00037671,2]
[426546966,1782577847000,-151.0,0.00037781,2]
[426546970,1782577847000,-10000.0,0.000379,120]
[426546973,1782577847000,-160.0,0.00038,120]
[426546968,1782577847000,-160.0,0.00037849,5]
[426546967,1782577847000,-151.0,0.00037836,2]
[426546972,1782577847000,-160.0,0.00038,120]
[426546975,1782577847000,-1280.17049016,0.00038,7]
[426546974,1782577847000,-160.0,0.00038,120]
[426546965,1782577847000,-939.47591515,0.00037673,2]
[426546971,1782577847000,-46608.410124,0.00038,2]
[426546969,1782577847000,-151.0,0.00037863,2]
[426546986,1782577847000,-151.0,0.00038329,2]
[426546977,1782577847000,-151.0,0.00038,2]
[426546978,1782577847000,-151.0,0.00038,2]
[426546988,1782577847000,-2000.0,0.0003835,2]
[426546987,1782577847000,-2000.0,0.0003835,2]
[426546976,1782577847000,-151.0,0.00038,2]
[426546979,1782577847000,-151.0,0.00038,2]
[426546983,1782577847000,-151.0,0.00038164,2]
[426546980,1782577847000,-300.0,0.00038066,48]
[426546985,1782577847000,-151.0,0.00038192,2]
[426546982,1782577847000,-151.0,0.00038164,2]
[426546981,1782577847000,-186.0,0.00038098,2]
[426546992,1782577847000,-500.0,0.00038356,2]
[426547019,1782577847000,-500.0,0.00038356,2]
[426547021,1782577847000,-352.75864132,0.00038356,2]
[426547085,1782577847000,-741.63,0.00038356,2]
[426547056,1782577847000,-500.0,0.00038356,2]
[426547058,1782577847000,-520.88613528,0.00038356,2]
[426547060,1782577847000,-500.0,0.00038356,2]
[426547063,1782577847000,-301.38790231,0.00038356,2]
[426547065,1782577847000,-500.0,0.00038356,2]
[426547059,1782577847000,-515.58453816,0.00038356,2]
[426547061,1782577847000,-507.12956199,0.00038356,2]
[426547062,1782577847000,-500.0,0.00038356,2]
[426547064,1782577847000,-500.0,0.00038356,2]
[426547066,1782577847000,-518.01971993,0.00038356,2]
[426547068,1782577847000,-500.0,0.00038356,2]
[426547070,1782577847000,-1000.0,0.00038356,2]
[426547073,1782577847000,-500.0,0.00038356,2]
[426547074,1782577847000,-500.0,0.00038356,2]
[426547071,1782577847000,-512.73415617,0.00038356,2]
[426547078,1782577847000,-500.0,0.00038356,2]
[426547075,1782577847000,-500.0,0.00038356,2]
[426547079,1782577847000,-500.0,0.00038356,2]
[426547076,1782577847000,-500.0,0.00038356,2]
[426547069,1782577847000,-500.0,0.00038356,2]
[426547077,1782577847000,-500.0,0.00038356,2]
[426547081,1782577847000,-500.0,0.00038356,2]
[426547080,1782577847000,-500.0,0.00038356,2]
[426547082,1782577847000,-500.0,0.00038356,2]
[426547083,1782577847000,-500.0,0.00038356,2]
[426547084,1782577847000,-500.0,0.00038356,2]
[426547086,1782577847000,-500.0,0.00038356,2]
[426547027,1782577847000,-500.0,0.00038356,2]
[426547087,1782577847000,-331.95717814,0.00038356,2]
[426547067,1782577847000,-691.17,0.00038356,2]
[426547057,1782577847000,-500.0,0.00038356,2]
[426547072,1782577847000,-509.29622756,0.00038356,2]
[426547051,1782577847000,-511.60659577,0.00038356,2]
[426547024,1782577847000,-500.0,0.00038356,2]
[426547052,1782577847000,-514.53436151,0.00038356,2]
[426547025,1782577847000,-500.0,0.00038356,2]
[426547026,1782577847000,-500.0,0.00038356,2]
[426547040,1782577847000,-500.0,0.00038356,2]
[426547029,1782577847000,-500.0,0.00038356,2]
[426547039,1782577847000,-500.0,0.00038356,2]
[426547041,1782577847000,-500.0,0.00038356,2]
[426547028,1782577847000,-500.0,0.00038356,2]
[426547030,1782577847000,-500.0,0.00038356,2]
[426547033,1782577847000,-500.0,0.00038356,2]
[426547035,1782577847000,-500.0,0.00038356,2]
[426547031,1782577847000,-698.17,0.00038356,2]
[426547032,1782577847000,-500.0,0.00038356,2]
[426547037,1782577847000,-506.1554871,0.00038356,2]
[426547022,1782577847000,-500.0,0.00038356,2]
[426547034,1782577847000,-514.38481179,0.00038356,2]
[426547036,1782577847000,-500.0,0.00038356,2]
[426547050,1782577847000,-1649.56,0.00038356,2]
[426547053,1782577847000,-500.0,0.00038356,2]
[426547054,1782577847000,-516.33712347,0.00038356,2]
[426547049,1782577847000,-503.38848539,0.00038356,2]
[426547048,1782577847000,-503.34061401,0.00038356,2]
[426547045,1782577847000,-500.0,0.00038356,2]
[426547055,1782577847000,-500.0,0.00038356,2]
[426547043,1782577847000,-500.0,0.00038356,2]
[426547046,1782577847000,-521.19102064,0.00038356,2]
[426547042,1782577847000,-500.0,0.00038356,2]
[426547044,1782577847000,-500.0,0.00038356,2]
[426547038,1782577847000,-500.0,0.00038356,2]
[426547047,1782577847000,-500.0,0.00038356,2]
[426547132,1782577848000,-512.28897303,0.00038356,2]
[426547125,1782577848000,-543.32998308,0.00038356,2]
[426547126,1782577848000,-500.0,0.00038356,120]
[426547128,1782577848000,-514.44507326,0.00038356,2]
[426547121,1782577848000,-514.10965046,0.00038356,2]
[426547124,1782577848000,-500.0,0.00038356,2]
[426547123,1782577848000,-518.25214662,0.00038356,2]
[426547127,1782577848000,-510.34391882,0.00038356,2]
[426547122,1782577848000,-512.33157173,0.00038356,2]
[426547129,1782577848000,-500.0,0.00038356,2]
[426547142,1782577848000,-500.0,0.00038356,2]
[426547130,1782577848000,-500.0,0.00038356,2]
[426547143,1782577848000,-500.0,0.00038356,2]
[426547139,1782577848000,-500.0,0.00038356,2]
[426547134,1782577848000,-500.0,0.00038356,2]
[426547136,1782577848000,-574.0907122,0.00038356,2]
[426547137,1782577848000,-500.0,0.00038356,2]
[426547133,1782577848000,-504.25980807,0.00038356,2]
[426547135,1782577848000,-500.0,0.00038356,2]
[426547138,1782577848000,-500.0,0.00038356,2]
[426547140,1782577848000,-500.0,0.00038356,2]
[426547141,1782577848000,-533.54109325,0.00038356,2]
[426547144,1782577848000,-523.44072707,0.00038356,2]
[426547149,1782577848000,-500.0,0.00038356,2]
[426547146,1782577848000,-500.0,0.00038356,2]
[426547145,1782577848000,-500.0,0.00038356,2]
[426547120,1782577848000,-822.88,0.00038356,2]
[426547131,1782577848000,-500.0,0.00038356,2]
[426547115,1782577848000,-502.82859636,0.00038356,2]
[426547152,1782577848000,-533.47448925,0.00038356,2]
[426547114,1782577848000,-500.0,0.00038356,2]
[426547092,1782577848000,-500.0,0.00038356,2]
[426547093,1782577848000,-500.0,0.00038356,2]
[426547091,1782577848000,-511.56637764,0.00038356,2]
[426547089,1782577848000,-500.0,0.00038356,2]
[426547088,1782577848000,-500.0,0.00038356,2]
[426547090,1782577848000,-500.0,0.00038356,2]
[426547094,1782577848000,-500.0,0.00038356,2]
[426547096,1782577848000,-500.0,0.00038356,2]
[426547097,1782577848000,-500.0,0.00038356,2]
[426547104,1782577848000,-500.0,0.00038356,2]
[426547098,1782577848000,-500.0,0.00038356,2]
[426547106,1782577848000,-396.75968172,0.00038356,2]
[426547103,1782577848000,-500.0,0.00038356,2]
[426547100,1782577848000,-794.06,0.00038356,2]
[426547105,1782577848000,-500.0,0.00038356,2]
[426547099,1782577848000,-500.0,0.00038356,2]
[426547102,1782577848000,-500.0,0.00038356,2]
[426547095,1782577848000,-500.0,0.00038356,2]
[426547101,1782577848000,-554.30420917,0.00038356,2]
[426547107,1782577848000,-500.0,0.00038356,2]
[426547117,1782577848000,-515.49121573,0.00038356,2]
[426547113,1782577848000,-500.0,0.00038356,2]
[426547109,1782577848000,-1132.1,0.00038356,2]
[426547110,1782577848000,-500.0,0.00038356,2]
[426547111,1782577848000,-510.83918743,0.00038356,2]
[426547112,1782577848000,-500.0,0.00038356,2]
[426547119,1782577848000,-500.0,0.00038356,2]
[426547116,1782577848000,-524.09155501,0.00038356,2]
[426547118,1782577848000,-500.0,0.00038356,2]
[426547108,1782577848000,-500.0,0.00038356,2]
[426547156,1782577848000,-500.0,0.00038356,2]
[426547154,1782577848000,-504.22913981,0.00038356,2]
[426547153,1782577848000,-500.0,0.00038356,2]
[426547182,1782577848000,-1690.3,0.00038356,2]
[426547184,1782577848000,-518.34038517,0.00038356,2]
[426547185,1782577848000,-500.0,0.00038356,2]
[426547189,1782577848000,-522.81114459,0.00038356,2]
[426547186,1782577848000,-500.0,0.00038356,2]
[426547190,1782577848000,-500.0,0.00038356,2]
[426547191,1782577848000,-500.0,0.00038356,2]
[426547188,1782577848000,-500.0,0.00038356,2]
[426547192,1782577848000,-533.91759291,0.00038356,2]
[426547187,1782577848000,-521.13878754,0.00038356,2]
[426547195,1782577848000,-500.0,0.00038356,2]
[426547204,1782577848000,-500.0,0.00038356,2]
[426547198,1782577848000,-652.44,0.00038356,2]
[426547194,1782577848000,-516.45857937,0.00038356,2]
[426547199,1782577848000,-500.0,0.00038356,2]
[426547196,1782577848000,-509.54850891,0.00038356,2]
[426547200,1782577848000,-421.86277128,0.00038356,2]
[426547205,1782577848000,-500.0,0.00038356,2]
[426547206,1782577848000,-500.0,0.00038356,2]
[426547203,1782577848000,-500.0,0.00038356,2]
[426547201,1782577848000,-504.36890064,0.00038356,2]
[426547202,1782577848000,-665.53,0.00038356,2]
[426547207,1782577848000,-500.0,0.00038356,2]
[426547209,1782577848000,-513.58859271,0.00038356,2]
[426547208,1782577848000,-500.0,0.00038356,2]
[426547210,1782577848000,-500.0,0.00038356,2]
[426547211,1782577848000,-709.38,0.00038356,2]
[426547212,1782577848000,-532.34230648,0.00038356,2]
[426547197,1782577848000,-513.91344942,0.00038356,2]
[426547193,1782577848000,-500.0,0.00038356,2]
[426547213,1782577848000,-551.73520746,0.00038356,2]
[426547178,1782577848000,-500.0,0.00038356,2]
[426547183,1782577848000,-510.86316792,0.00038356,2]
[426547150,1782577848000,-500.0,0.00038356,2]
[426547147,1782577848000,-500.0,0.00038356,2]
[426547155,1782577848000,-516.12450119,0.00038356,2]
[426547151,1782577848000,-507.82140746,0.00038356,2]
[426547158,1782577848000,-500.0,0.00038356,2]
[426547168,1782577848000,-1082.49,0.00038356,2]
[426547163,1782577848000,-500.0,0.00038356,2]
[426547157,1782577848000,-500.0,0.00038356,2]
[426547159,1782577848000,-500.0,0.00038356,2]
[426547160,1782577848000,-447.77141296,0.00038356,2]
[426547169,1782577848000,-517.39389962,0.00038356,2]
[426547162,1782577848000,-174.75345646,0.00038356,120]
[426547161,1782577848000,-521.28792052,0.00038356,2]
[426547148,1782577848000,-520.77403075,0.00038356,2]
[426547165,1782577848000,-1004.1,0.00038356,2]
[426547164,1782577848000,-500.0,0.00038356,2]
[426547181,1782577848000,-506.38524302,0.00038356,2]
[426547179,1782577848000,-509.79170204,0.00038356,2]
[426547171,1782577848000,-515.00261147,0.00038356,2]
[426547177,1782577848000,-503.93411281,0.00038356,2]
[426547175,1782577848000,-520.0405048,0.00038356,2]
[426547180,1782577848000,-500.0,0.00038356,2]
[426547174,1782577848000,-515.02911492,0.00038356,2]
[426547173,1782577848000,-465.44437328,0.00038356,2]
[426547167,1782577848000,-518.96612076,0.00038356,2]
[426547166,1782577848000,-571.06,0.00038356,2]
[426547170,1782577848000,-516.53168559,0.00038356,2]
[426547172,1782577848000,-637.81954117,0.00038356,2]
[426547176,1782577848000,-500.0,0.00038356,2]
[426547244,1782577849000,-517.95481802,0.00038356,2]
[426547245,1782577849000,-500.0,0.00038356,2]
[426547246,1782577849000,-500.0,0.00038356,2]
[426547243,1782577849000,-515.68322182,0.00038356,2]
[426547260,1782577849000,-500.0,0.00038356,2]
[426547250,1782577849000,-500.0,0.00038356,2]
[426547261,1782577849000,-500.0,0.00038356,2]
[426547249,1782577849000,-1444.08,0.00038356,2]
[426547251,1782577849000,-500.0,0.00038356,2]
[426547253,1782577849000,-500.0,0.00038356,2]
[426547252,1782577849000,-559.61746292,0.00038356,2]
[426547255,1782577849000,-524.66913774,0.00038356,2]
[426547263,1782577849000,-508.4564272,0.00038356,2]
[426547256,1782577849000,-507.37769748,0.00038356,2]
[426547257,1782577849000,-521.60592955,0.00038356,2]
[426547259,1782577849000,-513.69350489,0.00038356,2]
[426547258,1782577849000,-500.0,0.00038356,2]
[426547242,1782577849000,-509.45682376,0.00038356,2]
[426547262,1782577849000,-530.90526582,0.00038356,2]
[426547274,1782577849000,-500.0,0.00038356,2]
[426547264,1782577849000,-6675.6,0.00038356,2]
[426547273,1782577849000,-503.77129329,0.00038356,2]
[426547266,1782577849000,-500.0,0.00038356,2]
[426547267,1782577849000,-502.08035226,0.00038356,2]
[426547271,1782577849000,-500.0,0.00038356,2]
[426547270,1782577849000,-500.0,0.00038356,2]
[426547254,1782577849000,-500.0,0.00038356,2]
[426547240,1782577849000,-2143.14,0.00038356,2]
[426547235,1782577849000,-528.62322378,0.00038356,2]
[426547237,1782577849000,-589.61312205,0.00038356,2]
[426547272,1782577849000,-500.0,0.00038356,2]
[426547217,1782577849000,-510.82629009,0.00038356,2]
[426547215,1782577849000,-518.11411983,0.00038356,2]
[426547214,1782577849000,-500.0,0.00038356,2]
[426547216,1782577849000,-503.17819244,0.00038356,2]
[426547219,1782577849000,-500.0,0.00038356,2]
[426547218,1782577849000,-1000.0,0.00038356,2]
[426547220,1782577849000,-518.4256542,0.00038356,2]
[426547221,1782577849000,-536.03460423,0.00038356,2]
[426547224,1782577849000,-513.19816993,0.00038356,2]
[426547223,1782577849000,-500.0,0.00038356,2]
[426547222,1782577849000,-509.56628424,0.00038356,2]
[426547247,1782577849000,-554.46965567,0.00038356,2]
[426547226,1782577849000,-514.26895379,0.00038356,2]
[426547227,1782577849000,-529.66426799,0.00038356,2]
[426547229,1782577849000,-511.93273387,0.00038356,2]
[426547234,1782577849000,-528.38806426,0.00038356,2]
[426547225,1782577849000,-507.80923374,0.00038356,2]
[426547232,1782577849000,-506.27351665,0.00038356,2]
[426547228,1782577849000,-519.87756721,0.00038356,2]
[426547230,1782577849000,-548.57647088,0.00038356,2]
[426547231,1782577849000,-500.0,0.00038356,2]
[426547239,1782577849000,-533.56954849,0.00038356,2]
[426547248,1782577849000,-509.09962583,0.00038356,2]
[426547241,1782577849000,-500.0,0.00038356,2]
[426547238,1782577849000,-500.0,0.00038356,2]
[426547236,1782577849000,-506.04106177,0.00038356,2]
[426547233,1782577849000,-544.53382664,0.00038356,2]
[426547265,1782577849000,-500.0,0.00038356,2]
[426547269,1782577849000,-518.59631487,0.00038356,2]
[426547305,1782577849000,-541.97275464,0.00038356,2]
[426547311,1782577849000,-517.06535188,0.00038356,2]
[426547308,1782577849000,-500.0,0.00038356,2]
[426547310,1782577849000,-500.0,0.00038356,2]
[426547306,1782577849000,-500.0,0.00038356,2]
[426547304,1782577849000,-500.0,0.00038356,2]
[426547309,1782577849000,-513.35259779,0.00038356,2]
[426547307,1782577849000,-535.33326482,0.00038356,2]
[426547314,1782577849000,-500.0,0.00038356,2]
[426547316,1782577849000,-511.32335032,0.00038356,2]
[426547317,1782577849000,-500.0,0.00038356,2]
[426547318,1782577849000,-502.09612625,0.00038356,2]
[426547319,1782577849000,-690.17,0.00038356,2]
[426547327,1782577849000,-500.0,0.00038356,2]
[426547321,1782577849000,-500.0,0.00038356,2]
[426547322,1782577849000,-500.0,0.00038356,2]
[426547315,1782577849000,-500.0,0.00038356,2]
[426547320,1782577849000,-500.0,0.00038356,2]
[426547323,1782577849000,-500.0,0.00038356,2]
[426547324,1782577849000,-515.77035122,0.00038356,2]
[426547326,1782577849000,-500.0,0.00038356,2]
[426547329,1782577849000,-500.0,0.00038356,2]
[426547328,1782577849000,-500.0,0.00038356,2]
[426547330,1782577849000,-500.0,0.00038356,2]
[426547332,1782577849000,-500.0,0.00038356,2]
[426547331,1782577849000,-515.78417448,0.00038356,2]
[426547268,1782577849000,-501.71816325,0.00038356,2]
[426547312,1782577849000,-498.41425772,0.00038356,2]
[426547302,1782577849000,-1021.39,0.00038356,2]
[426547325,1782577849000,-500.0,0.00038356,2]
[426547303,1782577849000,-500.0,0.00038356,2]
[426547284,1782577849000,-500.0,0.00038356,2]
[426547313,1782577849000,-500.0,0.00038356,2]
[426547285,1782577849000,-500.0,0.00038356,2]
[426547288,1782577849000,-504.17884796,0.00038356,2]
[426547286,1782577849000,-500.0,0.00038356,2]
[426547275,1782577849000,-502.78128673,0.00038356,2]
[426547287,1782577849000,-500.0,0.00038356,2]
[426547282,1782577849000,-500.0,0.00038356,2]
[426547281,1782577849000,-514.70631957,0.00038356,2]
[426547277,1782577849000,-500.0,0.00038356,2]
[426547276,1782577849000,-511.10914523,0.00038356,2]
[426547278,1782577849000,-555.12722007,0.00038356,2]
[426547283,1782577849000,-500.0,0.00038356,2]
[426547279,1782577849000,-509.29891202,0.00038356,2]
[426547280,1782577849000,-512.90162608,0.00038356,2]
[426547290,1782577849000,-510.97889188,0.00038356,2]
[426547300,1782577849000,-507.33194378,0.00038356,2]
[426547289,1782577849000,-504.04524121,0.00038356,2]
[426547299,1782577849000,-594.35,0.00038356,2]
[426547301,1782577849000,-500.0,0.00038356,2]
[426547297,1782577849000,-503.80403006,0.00038356,2]
[426547296,1782577849000,-500.0,0.00038356,2]
[426547298,1782577849000,-624.60337995,0.00038356,2]
[426547291,1782577849000,-500.0,0.00038356,2]
[426547295,1782577849000,-711.51,0.00038356,2]
[426547293,1782577849000,-500.0,0.00038356,2]
[426547292,1782577849000,-500.0,0.00038356,2]
[426547294,1782577849000,-510.99809077,0.00038356,2]
[426547389,1782577850000,-500.0,0.00038356,2]
[426547376,1782577850000,-1182.21,0.00038356,2]
[426547374,1782577850000,-514.49913055,0.00038356,2]
[426547372,1782577850000,-500.0,0.00038356,2]
[426547377,1782577850000,-500.0,0.00038356,2]
[426547367,1782577850000,-500.0,0.00038356,2]
[426547369,1782577850000,-640.06,0.00038356,2]
[426547373,1782577850000,-161.21619129,0.00038356,2]
[426547371,1782577850000,-500.0,0.00038356,2]
[426547368,1782577850000,-517.13084128,0.00038356,2]
[426547375,1782577850000,-514.26982264,0.00038356,2]
[426547390,1782577850000,-1103.76,0.00038356,2]
[426547370,1782577850000,-500.0,0.00038356,2]
[426547379,1782577850000,-500.0,0.00038356,2]
[426547394,1782577850000,-502.84960268,0.00038356,2]
[426547381,1782577850000,-170.21069882,0.00038356,2]
[426547380,1782577850000,-500.0,0.00038356,2]
[426547378,1782577850000,-500.0,0.00038356,2]
[426547382,1782577850000,-500.0,0.00038356,2]
[426547383,1782577850000,-508.69576571,0.00038356,2]
[426547388,1782577850000,-500.0,0.00038356,2]
[426547384,1782577850000,-500.0,0.00038356,2]
[426547386,1782577850000,-500.0,0.00038356,2]
[426547387,1782577850000,-500.0,0.00038356,2]
[426547385,1782577850000,-513.13735882,0.00038356,2]
[426547392,1782577850000,-500.0,0.00038356,2]
[426547401,1782577850000,-500.0,0.00038356,2]
[426547366,1782577850000,-500.0,0.00038356,2]
[426547391,1782577850000,-500.0,0.00038356,2]
[426547359,1782577850000,-500.0,0.00038356,2]
[426547339,1782577850000,-500.0,0.00038356,2]
[426547360,1782577850000,-500.0,0.00038356,2]
[426547393,1782577850000,-500.0,0.00038356,2]
[426547340,1782577850000,-500.0,0.00038356,2]
[426547335,1782577850000,-500.0,0.00038356,2]
[426547336,1782577850000,-500.0,0.00038356,2]
[426547333,1782577850000,-833.44,0.00038356,2]
[426547337,1782577850000,-500.0,0.00038356,2]
[426547334,1782577850000,-500.0,0.00038356,2]
[426547338,1782577850000,-500.0,0.00038356,2]
[426547341,1782577850000,-500.0,0.00038356,2]
[426547343,1782577850000,-500.0,0.00038356,2]
[426547352,1782577850000,-500.0,0.00038356,2]
[426547345,1782577850000,-1979.39,0.00038356,2]
[426547350,1782577850000,-500.0,0.00038356,2]
[426547342,1782577850000,-500.0,0.00038356,2]
[426547348,1782577850000,-500.0,0.00038356,2]
[426547347,1782577850000,-505.76929758,0.00038356,2]
[426547351,1782577850000,-500.0,0.00038356,2]
[426547346,1782577850000,-500.0,0.00038356,2]
[426547344,1782577850000,-500.0,0.00038356,2]
[426547349,1782577850000,-504.37029164,0.00038356,2]
[426547364,1782577850000,-500.0,0.00038356,2]
[426547365,1782577850000,-500.0,0.00038356,2]
[426547356,1782577850000,-307.83176006,0.00038356,2]
[426547354,1782577850000,-500.0,0.00038356,2]